bitfinex-derivatives/quotes_ETHF0:USTF0_20250309
["timestamp","ask_amount","ask_price","bid_price","bid_amount"]
[1741546273371,6.5268,2006.8,2006.0,5.8007]
[1741546273560,6.5268,2007.5,2006.3,3.2078]
[1741546273866,0.99646,2007.3,2006.7,0.99671]
[1741546274059,6.5268,2007.5,2006.3,3.2078]
[1741546274267,3.2078,2007.2,2006.3,3.2078]
[1741546274458,4.20429,2007.2,2006.6,0.99674]
[1741546274661,0.99661,2007.0,2006.4,0.99685]
[1741546275062,0.00747626,2006.9,2006.3,3.2078]
[1741546275262,0.00747626,2006.9,2006.8,0.99669]
[1741546275458,6.26e-06,2006.9,2006.8,0.99669]
[1741546275666,3.2078,2007.8,2006.9,2.4916]
[1741546275874,3.2078,2008.2,2007.2,3.2078]
[1741546276065,0.99625,2007.7,2007.2,3.7062]
[1741546276269,3.2078,2007.9,2007.1,3.2078]
[1741546276469,3.2078,2007.9,2007.0,2.949]
[1741546276766,0.00747626,2007.7,2007.3,0.00747626]
[1741546277876,0.99636,2007.5,2007.3,0.00747626]
[1741546278068,3.21527626,2007.7,2007.3,0.00747626]
[1741546278371,0.00747626,2007.7,2007.3,0.00747626]
[1741546278573,0.99637,2007.5,2007.3,0.00747626]
[1741546278772,0.00747626,2007.7,2007.3,0.00747626]
[1741546278970,0.00747626,2007.7,2007.4,0.99636]
[1741546279178,0.00747626,2007.7,2007.3,0.00747626]
[1741546279473,0.00747626,2007.7,2007.4,0.99637]
[1741546279670,0.99692,2006.4,2006.0,3.2078]
[1741546279875,6.5278,2006.5,2005.6,5.0682]
[1741546280070,3.2078,2006.2,2005.6,5.0682]
[1741546280265,3.2078,2006.2,2004.8,3.32]
[1741546280266,3.2078,2005.8,2005.0,3.2078]
[1741546280465,3.2078,2005.8,2005.3,4.2052]
[1741546280466,7.52502,2005.8,2005.3,4.2052]
[1741546280761,0.9973,2005.6,2005.1,0.99751]
[1741546280961,3.2078,2005.5,2005.3,0.00747626]
[1741546281167,3.2078,2005.5,2004.4,3.2078]
[1741546281374,3.2078,2005.2,2004.4,3.2078]
[1741546281567,1.7686,2005.4,2004.7,3.2078]
[1741546281966,3.2078,2005.6,2004.7,3.2078]
[1741546282168,3.2078,2005.6,2004.8,3.2078]
[1741546282371,2.49458,2004.5,2003.6,0.4992]
[1741546282583,2.49585,2003.5,2002.9,25.93645873]
[1741546282769,22.358,2004.4,2002.8,24.11923699]
[1741546282770,0.99863,2002.9,2002.8,24.11923699]
[1741546283076,0.99863,2002.9,2001.2,2.78346889]
[1741546283077,0.99936,2001.5,2001.2,14.41044569]
[1741546283376,3.2078,2001.6,2001.1,3.2078]
[1741546283565,3.807,2001.8,2000.2,0.5]
[1741546283566,3.2078,2002.6,2001.4,3.2078]
[1741546283767,1.7686,2002.5,2001.8,3.2078]
[1741546283969,1.7686,2002.4,2002.3,4.41167481]
[1741546284173,0.36655245,2003.6,2002.4,5.20456088]
[1741546284174,1.7686,2003.1,2002.4,5.20456088]
[1741546284366,3.2078,2002.5,2001.9,1.025]
[1741546284671,8.81898048,2003.1,2001.9,3.2078]
[1741546284871,3.2078,2002.0,2001.3,3.2078]
[1741546285067,0.00749513,2002.4,2001.9,3.2078]
[1741546285264,5.60165668,2002.9,2002.3,0.00749513]
[1741546285477,2.985,2004.0,2002.8,4.20646]
[1741546285668,2.49395,2005.1,2002.4,22.375]
[1741546285669,6.1928,2005.0,2003.9,3.2078]
[1741546285863,6.1928,2005.0,2003.8,3.2078]
[1741546285864,4.535,2005.0,2003.8,3.2078]
[1741546286063,5.60330025,2005.6,2004.4,3.2078]
[1741546286270,7.7458,2005.5,2005.0,3.2078]
[1741546286572,3.2078,2005.1,2003.4,3.2078]
[1741546286771,4.538,2005.5,2002.7,3.2078]
[1741546286772,3.2078,2003.9,2002.7,3.2078]
[1741546286972,3.2078,2003.9,2001.9,2.49777]
[1741546286973,3.2078,2003.2,2002.4,3.2078]
[1741546287175,3.2078,2002.6,2001.6,4.2052]
[1741546287377,3.2078,2002.0,2001.5,3.2078]
[1741546287575,4.699,2002.5,2001.5,11.63200658]
[1741546287877,4.89,2001.1,2000.3,3.2078]
[1741546288075,1.00019,1999.8,1999.0,3.2078]
[1741546288272,3.2078,1999.6,1999.0,3.2078]
[1741546288479,10.84446745,2001.0,1999.5,3.2078]
[1741546288480,3.2078,2000.3,1999.5,3.2078]
[1741546288679,0.099985,2000.3,1999.9,3.2078]
[1741546288973,0.00749513,2000.1,1999.3,3.2078]
[1741546289271,2.70908917,2001.9,2001.6,0.9974]
[1741546289472,2.70908917,2001.9,2001.7,0.9974]
[1741546289473,3.2078,2001.9,2001.7,0.9974]
[1741546289682,2.985,2002.1,2001.8,0.9974]
[1741546289867,3.2078,2003.1,2001.8,3.2078]
[1741546290066,3.2078,2003.2,2002.4,1.04320692]
[1741546290266,3.2078,2003.2,2002.1,3.2078]
[1741546290267,3.2078,2002.6,2002.1,3.2078]
[1741546290467,0.00749513,2003.0,2002.6,0.00749513]
[1741546290674,0.00749513,2003.0,2002.5,6.2047]
[1741546290675,4.20653,2002.7,2002.5,2.9969]
[1741546290979,4.00749513,2003.0,2001.1,3.2078]
[1741546290980,5.55628648,2002.5,2001.1,3.2078]
[1741546291176,1.21,2002.0,2001.5,0.9974]
[1741546291474,3.2078,2001.6,2000.6,0.9974]
[1741546291676,3.2078,2001.1,2000.4,1.35495995]
[1741546291866,3.2078,2001.2,2000.8,0.9974]
[1741546292068,3.2078,2000.9,1999.7,1.59468]
[1741546292275,3.2078,1998.2,1997.0,13.0475]
[1741546292579,3.2078,1998.3,1998.0,3.76362705]
[1741546292775,3.2078,1998.3,1998.2,1.00098]
[1741546292977,2.985,1999.9,1997.5,22.406]
[1741546292978,3.2078,1998.6,1997.5,41.86245171]
[1741546293272,3.2078,1999.4,1998.2,3.2078]
[1741546293475,3.2078,2000.4,1999.2,3.2078]
[1741546293676,3.2078,2000.1,1999.6,3.76362705]
[1741546293979,3.2078,1999.8,1998.5,6.97142705]
[1741546294177,3.2078,1999.7,1998.6,3.2078]
[1741546294377,3.2078,1999.3,1998.7,3.2078]
[1741546294577,5.662,1999.6,1998.6,2.0014]
[1741546294578,3.2078,1998.9,1998.6,2.0014]
[1741546294876,3.2078,1999.1,1998.8,3.76362705]
[1741546295080,2.49947,2000.6,1999.9,3.76362705]
[1741546295081,3.2078,2000.6,1999.9,3.76362705]
[1741546295376,3.2078,1999.2,1998.6,2.2491]
[1741546295576,3.2078,1999.1,1998.6,2.2491]
[1741546295771,3.2078,2000.1,1999.1,3.76362705]
[1741546295972,11.9428,2001.0,2000.1,3.76362705]
[1741546296279,3.2078,2001.6,2000.6,3.76362705]
[1741546296467,3.2078,2001.1,2000.3,3.2078]
[1741546296665,3.69198994,2001.7,2000.5,3.2078]
[1741546296666,5.13e-06,2000.8,2000.5,3.2078]
[1741546296873,5.53798492,2001.9,2001.4,2.47079804]
[1741546297073,3.2078,2004.4,2003.1,2.47079804]
[1741546297274,3.2078,2004.7,2003.2,2.47079804]
[1741546297471,5.35463752,2004.3,2003.4,3.2078]
[1741546297768,3.2078,2004.4,2003.4,3.2078]
[1741546297968,0.02491336,2004.6,2004.0,3.2078]
[1741546298171,0.02491336,2004.6,2004.3,3.2078]
[1741546298375,6.092,2005.0,2003.8,3.2078]
[1741546298587,3.2078,2004.7,2003.6,0.00749513]
[1741546298976,5.23799182,2004.9,2004.0,3.2078]
[1741546299275,0.09975062,2005.0,2004.3,4.20569]
[1741546299475,0.99758,2005.0,2004.3,3.2078]
[1741546299672,3.2078,2004.9,2003.9,3.2078]
[1741546299868,3.2078,2005.5,2004.7,3.2078]
[1741546300072,3.2078,2005.8,2005.0,3.2078]
[1741546300581,6.67460312,2006.0,2005.9,0.99713]
[1741546300784,14.76795979,2006.3,2005.9,3.2078]
[1741546301077,12.20969979,2006.3,2006.2,4.20478]
[1741546301274,2.59097979,2006.3,2006.2,14.33778]
[1741546301475,1.59058979,2006.3,2006.2,14.33778]
[1741546301784,0.00749513,2006.5,2006.4,4.20468]
[1741546301976,18.45994973,2006.9,2006.4,3.2078]
[1741546302280,3.2078,2006.6,2006.0,0.00749513]
[1741546302675,3.2078,2006.3,2006.0,0.00749513]
[1741546302978,3.2078,2006.3,2004.4,3.2078]
[1741546303177,3.2078,2004.7,2003.7,22.4]
[1741546303380,3.2078,2004.5,2003.7,0.4992]
[1741546303576,3.2078,2003.9,2003.8,0.99818]
[1741546303885,3.2078,2004.8,2003.8,34.45270162]
[1741546304083,3.2078,2005.8,2004.6,3.2078]
[1741546304278,3.2078,2006.1,2004.9,3.2078]
[1741546304581,3.2078,2006.5,2005.3,2.49358]
[1741546304781,0.00747608,2005.7,2005.5,3.2078]
[1741546304970,8.00747608,2005.7,2005.3,0.00747608]
[1741546305177,0.99737,2005.5,2004.6,0.99774]
[1741546305371,8.00747608,2005.7,2004.3,3.2078]
[1741546305372,3.2078,2005.2,2004.3,3.2078]
[1741546305678,3.2078,2005.6,2004.6,3.2078]
[1741546305979,6.08e-06,2005.7,2005.6,0.99728]
[1741546306283,6.08e-06,2005.7,2005.6,29.56528]
[1741546306475,3.2078,2006.6,2005.7,0.4992]
[1741546306675,3.2078,2006.7,2006.0,3.2078]
[1741546307084,14.172,2007.9,2006.0,3.2078]
[1741546307085,3.2078,2007.6,2006.3,3.2078]
[1741546307278,3.2078,2007.6,2006.6,3.2078]
[1741546307478,3.2078,2007.3,2006.6,22.396]
[1741546307680,6.154,2008.5,2006.6,22.396]
[1741546307681,3.2078,2007.2,2006.7,3.2078]
[1741546307979,0.00747608,2007.3,2006.9,0.00747608]
[1741546308180,6.08e-06,2007.3,2007.2,0.99649]
[1741546308385,6.08e-06,2007.3,2007.2,4.99649]
[1741546308682,3.2078,2008.6,2008.5,0.99584]
[1741546308881,3.2078,2008.6,2008.1,6.17]
[1741546309079,1.49869957,2010.7,2010.6,0.9948]
[1741546309278,4.98001216,2011.2,2010.6,3.2078]
[1741546309475,4.98001216,2011.2,2010.4,18.40871]
[1741546309686,4.98001216,2011.1,2010.8,3.2078]
[1741546309984,3.2078,2014.0,2012.0,3.2078]
[1741546310189,3.2078,2014.2,2012.9,0.99367]
[1741546310383,3.2078,2013.9,2012.7,3.2078]
[1741546310582,3.2078,2013.6,2012.4,3.2078]
[1741546310782,22.366,2014.6,2012.1,12.31521488]
[1741546310783,0.9933,2013.7,2012.7,3.2078]
[1741546310981,0.99335,2013.6,2012.7,3.2078]
[1741546311178,0.99348,2013.3,2012.7,3.2078]
[1741546311387,3.2078,2012.9,2012.6,6.38e-06]
[1741546311680,0.00745638,2013.1,2012.6,6.38e-06]
[1741546311882,0.99376,2012.7,2012.6,6.38e-06]
[1741546312186,3.21525638,2013.1,2012.6,6.38e-06]
[1741546312380,0.00745638,2013.1,2012.6,6.38e-06]
[1741546312689,0.00745638,2013.1,2012.7,3.2078]
[1741546312980,0.00745638,2013.1,2013.0,3.2078]
[1741546313181,6.38e-06,2013.1,2013.0,4.20142]
[1741546313386,3.2078,2015.3,2013.3,3.2078]
[1741546313580,3.2078,2015.3,2014.0,3.2078]
[1741546313778,3.2078,2015.8,2014.9,3.2078]
[1741546313979,20.84307585,2016.3,2015.0,0.99263]
[1741546314182,20.84307585,2016.3,2015.5,3.2078]
[1741546314380,20.84307585,2016.3,2016.2,3.2078]
[1741546314583,0.00745638,2016.1,2015.9,3.2078]
[1741546314779,0.00745638,2016.1,2016.0,0.99214]
[1741546314993,20.84307585,2016.3,2016.2,4.19983362]
[1741546315183,20.84307585,2016.3,2016.2,3.20779362]
[1741546315383,20.84307585,2016.3,2016.2,7.70379362]
[1741546315684,23.5791738,2016.3,2015.7,0.00745638]
[1741546315885,2.73609795,2016.2,2014.9,0.4968]
[1741546316085,0.99241,2015.5,2014.6,1.574]
[1741546316282,3.2078,2015.0,2014.2,4.5458]
[1741546316487,3.2078,2014.7,2013.2,0.4968]
[1741546316685,3.2078,2013.4,2012.9,1.5668]
[1741546316891,3.2078,2014.0,2013.1,1.014]
[1741546317084,3.2078,2013.2,2013.1,6.27946503]
[1741546317280,3.2078,2013.2,2013.1,1.04]
[1741546317588,3.2078,2013.4,2013.2,6.3871961]
[1741546317887,3.2078,2013.9,2013.1,5.04]
[1741546318093,3.2078,2013.9,2013.8,0.99322]
[1741546318285,2.48007,2016.3,2013.8,0.99322]
[1741546318286,3.2078,2015.6,2013.8,25.5258]
[1741546318587,3.2078,2015.6,2015.1,3.2078]
[1741546318784,2.73609795,2015.5,2015.2,1.039]
[1741546319287,2.73609795,2015.5,2014.5,0.00745638]
[1741546319288,3.2078,2015.3,2014.5,0.00745638]
[1741546319481,0.00745638,2015.5,2014.1,2.5435]
[1741546319482,3.2078,2014.6,2014.1,2.5435]
[1741546319983,3.2078,2014.9,2014.1,6.5435]
[1741546320189,3.2078,2015.6,2014.2,11.75386809]
[1741546320389,3.2078,2014.8,2014.2,5.19498788]
[1741546320686,3.2078,2014.5,2014.2,5.19498788]
[1741546320892,3.2078,2015.0,2013.9,3.2078]
[1741546321190,0.99293,2014.4,2014.3,0.00745638]
[1741546321388,0.99293,2014.4,2013.2,5.7968]
[1741546321389,2.48249,2014.3,2013.2,2.589]
[1741546321690,3.2078,2013.5,2012.8,0.4968]
[1741546321891,3.2078,2013.5,2013.3,1.9867]
[1741546322081,3.2078,2013.8,2013.3,1.9867]
[1741546322286,3.2078,2013.9,2013.4,0.99342]
[1741546322487,3.2078,2013.9,2013.8,0.99322]
[1741546322692,0.00745638,2013.8,2013.4,6.52146419]
[1741546322988,0.00745638,2013.8,2013.3,1.99415638]
[1741546323187,3.2078,2015.0,2013.7,3.2078]
[1741546323381,3.2078,2015.0,2014.0,3.2078]
[1741546323584,3.2078,2014.6,2013.8,12.25976272]
[1741546323784,3.2078,2014.2,2013.9,0.99315]
[1741546323984,3.2078,2014.2,2013.8,12.25976272]
[1741546323985,3.2078,2014.2,2014.1,0.99307]
[1741546324189,3.2078,2014.2,2014.0,0.99311]
[1741546324390,3.21525638,2014.2,2013.9,6.38e-06]
[1741546324597,5.69089362,2013.8,2012.8,0.4968]
[1741546324782,3.2078,2012.9,2011.9,26.1038]
[1741546325091,3.2078,2013.0,2012.0,0.4976]
[1741546325394,2.4622,2014.5,2011.8,0.4968]
[1741546325395,3.2078,2012.3,2011.8,0.4968]
[1741546325591,3.2078,2012.3,2011.3,0.6]
[1741546325592,3.2078,2011.9,2011.6,0.99427]
[1741546325890,3.2078,2011.9,2010.8,2.5321]
[1741546325891,3.2078,2011.9,2010.3,0.571]
[1741546326192,3.2078,2010.7,2010.3,6.26079231]
[1741546326395,3.2078,2010.4,2010.3,5.68979231]
[1741546326688,3.2078,2011.8,2010.7,2.4868]
[1741546326889,3.2078,2011.8,2010.7,3.2078]
[1741546327084,3.2078,2011.2,2010.9,0.99461]
[1741546327284,3.2078,2012.5,2011.0,25.50925638]
[1741546327585,11.88751825,2015.4,2011.0,25.50925638]
[1741546327586,3.2078,2013.8,2012.4,3.2078]
[1741546327787,3.2078,2014.2,2013.3,5.69144]
[1741546327994,3.2078,2014.2,2013.4,0.571]
[1741546328294,2.5266,2015.3,2012.5,0.4968]
[1741546328295,3.2078,2013.5,2012.5,0.4968]
[1741546328494,4.20103,2013.8,2012.6,2.48451]
[1741546328791,3.2078,2013.4,2012.5,3.7046]
[1741546328992,3.2078,2013.4,2013.0,0.00745638]
[1741546329183,0.00745638,2014.0,2013.3,3.2078]
[1741546329489,3.2078,2014.3,2013.4,0.544]
[1741546329689,3.2078,2014.4,2013.4,6.96852461]
[1741546329884,3.2078,2013.8,2013.1,0.4968]
[1741546330085,0.99322,2013.8,2013.1,0.99354]
[1741546330388,3.2078,2014.6,2013.3,3.2078]
[1741546330590,22.291,2014.9,2013.3,3.2078]
[1741546330591,0.00745638,2013.7,2013.3,3.2078]
[1741546330791,0.99347,2013.3,2013.2,0.00745638]
[1741546331089,0.00745638,2013.7,2013.4,0.99341]
[1741546331290,0.00745638,2013.7,2013.2,0.00745638]
[1741546331291,0.00745638,2013.7,2013.2,3.21525638]
[1741546331494,0.99346,2013.4,2013.2,0.00745638]
[1741546331795,3.2078,2013.6,2013.2,0.00745638]
[1741546332090,4.20127,2013.3,2013.2,0.00745638]
[1741546332292,3.2078,2013.3,2013.2,0.00745638]
[1741546332593,0.00745638,2013.7,2013.2,0.00745638]
[1741546332894,22.291,2014.9,2013.8,0.99318]
[1741546332895,3.2078,2014.4,2013.8,0.99318]
[1741546333198,3.2078,2014.5,2013.2,3.21525638]
[1741546333392,3.2078,2013.6,2013.2,0.00745638]
[1741546333689,3.2078,2014.6,2013.6,2.4833]
[1741546333894,3.2078,2014.6,2014.1,3.2078]
[1741546334085,3.2078,2014.6,2013.4,25.4978]
[1741546334287,3.2078,2014.2,2014.1,0.00745638]
[1741546334499,3.2078,2014.2,2013.1,3.2078]
[1741546334684,3.2078,2013.9,2012.9,0.4968]
[1741546334883,3.2078,2013.9,2013.6,0.9933]
[1741546335092,0.00745638,2014.3,2013.4,3.2078]
[1741546335295,1.00043638,2014.3,2013.4,3.2078]
[1741546335493,3.2078,2014.2,2013.6,3.2078]
[1741546335694,3.2078,2014.2,2013.7,0.99327]
[1741546335892,4.20083,2014.2,2013.6,4.20855638]
[1741546336093,0.99306,2014.2,2013.6,0.00745638]
[1741546336297,0.00745638,2014.3,2013.7,3.2078]
[1741546336594,37.06116162,2034.6,2014.1,5.69042]
[1741546336595,3.2078,2015.1,2014.1,5.69042]
[1741546336797,3.2078,2015.1,2013.7,38.47885325]
[1741546336798,4.20042,2015.1,2014.0,3.2078]
[1741546336998,3.2078,2015.1,2014.1,3.2078]
[1741546337192,3.2078,2014.8,2014.1,6.47292558]
[1741546337391,3.2078,2014.6,2014.1,6.47292558]
[1741546337589,3.2078,2014.3,2013.9,0.60665236]
[1741546337788,3.2078,2014.6,2014.2,1.59965236]
[1741546337986,0.00745638,2014.6,2014.4,0.99291]
[1741546338192,3.2078,2015.3,2014.4,3.2078]
[1741546338495,3.2078,2015.2,2014.3,0.60665236]
[1741546338695,2.4807,2015.8,2014.1,0.00745638]
[1741546338696,0.99302,2014.2,2014.1,0.00745638]
[1741546338901,3.2078,2014.2,2013.4,3.2078]
[1741546339198,3.2078,2014.3,2013.5,1.63100403]
[1741546339393,0.99326,2013.8,2013.5,1.63100403]
[1741546339593,3.2078,2014.5,2013.5,1.63100403]
[1741546339798,3.2078,2014.1,2013.6,1.00369479]
[1741546339993,3.2078,2013.8,2013.6,1.63100403]
[1741546340299,3.21525638,2014.1,2013.6,1.63846041]
[1741546340498,0.00745638,2014.1,2013.7,1.63100403]
[1741546340798,0.99322,2013.8,2013.7,1.63100403]
[1741546341196,3.2078,2014.0,2013.6,0.00745638]
[1741546341392,4.20107,2013.7,2013.6,6.38e-06]
[1741546341589,0.99327,2013.7,2013.6,1.63907077]
[1741546341792,3.2078,2013.7,2012.7,3.2078]
[1741546341993,0.99351,2013.3,2012.7,0.99375]
[1741546342289,3.2078,2013.6,2012.5,22.282]
[1741546342491,3.2078,2013.6,2012.6,0.4968]
[1741546342695,3.2078,2013.1,2012.6,0.4968]
[1741546342899,4.20154,2012.8,2012.4,3.2078]
[1741546343096,4.96378,2014.8,2012.5,3.2078]
[1741546343400,0.00745638,2013.7,2013.4,3.2078]
[1741546343594,3.2078,2013.5,2012.6,3.21525638]
[1741546343806,4.35609433,2013.7,2013.0,3.2078]
[1741546344297,4.34863795,2013.6,2013.2,3.2078]
[1741546344495,4.35609433,2013.7,2013.2,3.2078]
[1741546344691,3.2078,2013.4,2012.8,0.00745638]
[1741546345002,4.34863795,2013.6,2012.8,0.00745638]
[1741546345199,0.00745638,2013.7,2013.1,3.2078]
[1741546345599,1.00076638,2013.7,2013.2,0.99351]
[1741546345801,3.2078,2013.4,2012.8,3.21525638]
[1741546346303,3.2078,2013.2,2012.8,0.00745638]
[1741546346602,4.20147,2012.9,2012.8,6.38e-06]
[1741546346996,12.55010795,2012.9,2012.8,6.38e-06]
[1741546347196,0.99414,2012.0,2011.6,3.2078]
[1741546347497,3.2078,2012.0,2011.5,0.4976]
[1741546347698,7.55643157,2011.9,2011.3,3.2078]
[1741546347898,0.99447,2011.3,2011.0,0.0096]
[1741546348099,3.2078,2011.5,2011.0,0.0096]
[1741546348298,0.99453,2011.2,2011.0,0.0096]
[1741546348503,0.00745638,2011.4,2011.0,0.0096]
[1741546348899,3.2078,2011.2,2011.0,0.0096]
[1741546349100,0.00745638,2011.4,2011.0,0.0096]
[1741546349298,0.00745638,2011.4,2011.0,4.0096]
[1741546349507,3.2078,2012.5,2011.2,3.2078]
[1741546349694,3.2078,2012.5,2012.1,3.2078]
[1741546350006,3.2078,2013.1,2012.7,0.99376]
[1741546350203,3.2078,2013.1,2012.1,5.69285]
[1741546350204,4.34863157,2013.1,2012.1,3.2078]
[1741546350508,4.34863157,2013.4,2013.0,3.2078]
[1741546351006,3.2078,2013.2,2012.6,3.2078]
[1741546351209,0.99386,2012.5,2012.4,0.00745638]
[1741546351710,0.99405,2012.2,2011.8,3.2078]
[1741546351906,2.48378,2013.3,2012.1,3.2078]
[1741546352101,7.55643157,2013.1,2011.8,3.2078]
[1741546352406,0.9937,2012.9,2012.3,0.99394]
[1741546352610,0.9937,2012.9,2012.2,3.2078]
[1741546352804,0.00745638,2012.8,2012.7,0.99376]
[1741546353110,0.00745638,2012.8,2012.5,4.20165]
[1741546353311,4.35608795,2012.8,2012.4,0.00745638]
[1741546353601,0.00745638,2012.8,2012.7,0.99376]
[1741546353807,3.2078,2013.6,2012.7,3.2078]
[1741546354112,4.34863157,2013.6,2012.8,0.4968]
[1741546354302,4.34863157,2013.5,2012.9,6.284]
[1741546354502,4.34863157,2013.5,2012.9,7.89418959]
[1741546354702,4.34863157,2013.4,2012.9,0.61654959]
[1741546355004,0.9936,2013.1,2012.9,0.61654959]
[1741546355308,0.00745638,2013.4,2013.0,0.61654959]
[1741546355309,4.34863157,2013.3,2013.0,0.61654959]
[1741546355608,4.34863157,2013.3,2013.1,0.61654959]
[1741546356005,0.00745638,2013.4,2013.2,3.82434959]
[1741546356304,3.2078,2014.6,2013.3,6.7268]
[1741546356499,7.55643157,2014.9,2013.8,3.2078]
[1741546356705,3.2078,2014.0,2013.4,0.61654959]
[1741546356903,0.993,2014.3,2013.7,3.2078]
[1741546357107,3.2078,2014.2,2013.4,0.61654959]
[1741546357302,3.2078,2013.7,2013.4,0.61654959]
[1741546357507,3.2078,2013.7,2012.8,3.2078]
[1741546357697,7.55643157,2013.6,2012.8,3.2078]
[1741546357901,3.2078,2013.8,2012.8,3.2078]
[1741546358103,3.2078,2013.5,2012.8,3.2078]
[1741546358413,0.99353,2013.2,2012.8,3.2078]
[1741546358705,4.34863157,2013.4,2012.9,0.00745638]
[1741546359006,4.34863157,2013.4,2013.0,0.9936]
[1741546359206,4.34863157,2013.4,2012.9,0.00745638]
[1741546359406,0.99327,2013.8,2013.3,0.99345]
[1741546359603,0.99327,2013.8,2012.6,2.48446]
[1741546359604,3.2078,2013.1,2011.6,3.2078]
[1741546359905,3.2078,2012.4,2012.0,0.99409]
[1741546360102,3.2078,2012.4,2011.6,2.48578]
[1741546360303,3.2078,2012.4,2012.3,0.99396]
[1741546360598,3.2078,2012.9,2012.1,3.2078]
[1741546360802,3.21525638,2012.6,2012.2,0.994]
[1741546361012,3.2078,2012.3,2012.1,0.01735638]
[1741546361309,0.00745638,2012.6,2012.1,0.01735638]
[1741546361310,0.99393,2012.4,2012.1,0.01735638]
[1741546361509,3.2078,2012.3,2012.1,0.01735638]
[1741546361710,3.21525638,2012.6,2012.4,0.99389]
[1741546362005,3.21525638,2012.6,2012.1,0.01735638]
[1741546362409,3.21525638,2012.6,2012.1,2.50243638]
[1741546362605,0.00745638,2012.6,2012.1,0.01735638]
[1741546362812,0.00745638,2012.6,2012.5,0.99386]
[1741546363003,0.00745638,2012.6,2012.2,3.2078]
[1741546363314,4.20179,2012.3,2012.1,0.01735638]
[1741546363608,0.99401,2012.2,2012.1,0.01735638]
[1741546363808,3.2078,2012.4,2012.1,0.01735638]
[1741546364313,0.99401,2012.3,2012.1,0.01735638]
[1741546364507,3.2078,2012.4,2012.1,0.01735638]
[1741546364508,0.00745638,2012.6,2012.1,0.01735638]
[1741546364706,3.2078,2012.4,2012.1,0.01735638]
[1741546365511,3.2078,2012.5,2012.1,0.01735638]
[1741546365812,3.2078,2012.2,2012.1,0.01735638]
[1741546366110,3.2078,2012.2,2010.6,11.9528]
[1741546366111,2.48537,2012.0,2010.6,11.9528]
[1741546366309,2.48572,2011.7,2010.7,0.4976]
[1741546366514,3.2078,2011.5,2010.6,9.3428]
[1741546366811,3.2078,2011.5,2010.5,1.82358221]
[1741546367004,0.99452,2011.2,2010.4,18.66207685]
[1741546367207,0.00745638,2011.2,2011.0,0.99456]
[1741546367398,0.00745638,2011.2,2010.8,0.00745638]
[1741546368111,0.00745638,2011.2,2011.1,0.99456]
[1741546368513,0.99423,2011.8,2011.4,0.99439]
[1741546368707,3.2078,2012.0,2011.7,0.99426]
[1741546369007,3.2078,2012.0,2011.5,3.2078]
[1741546369008,3.2078,2012.3,2011.5,3.2078]
[1741546369207,3.2078,2012.3,2011.0,6.48968359]
[1741546369208,3.2078,2011.9,2011.2,3.2078]
[1741546369508,3.2078,2011.6,2011.4,0.99439]
[1741546370006,0.00745638,2011.8,2011.6,0.99429]
[1741546370211,3.2078,2011.7,2011.3,3.2078]
[1741546370406,3.2078,2011.7,2010.9,7.59289]
[1741546370407,3.2078,2011.7,2011.0,3.2078]
[1741546370906,3.2078,2011.7,2011.1,2.4864]
[1741546371107,3.2078,2011.7,2011.0,3.2078]
[1741546371307,3.2078,2011.7,2011.1,2.4864]
[1741546371508,3.2078,2011.7,2011.5,0.99432]
[1741546371811,0.00745638,2011.8,2011.7,0.99426]
[1741546372413,0.00745638,2011.8,2011.7,7.2078]
[1741546372715,3.2078,2012.0,2011.7,0.99424]
[1741546373013,3.2078,2012.0,2011.4,3.7054]
[1741546373314,3.2078,2012.0,2011.4,0.4976]
[1741546373516,3.2078,2011.7,2011.1,3.2078]
[1741546373810,0.99448,2011.3,2011.1,3.2078]
[1741546374006,4.20222,2011.4,2011.2,0.00745638]
[1741546374206,4.20223,2011.4,2011.2,0.00745638]
[1741546374407,3.2078,2011.4,2011.2,0.00745638]
[1741546374804,2.48615,2011.3,2010.4,3.7054]
[1741546375012,3.2078,2011.0,2010.4,2.98482]
[1741546375304,3.2078,2011.0,2010.4,0.4976]
[1741546375511,4.20241,2011.0,2010.4,0.4976]
[1741546375706,3.2078,2011.0,2010.4,0.4976]
[1741546375907,4.20242,2011.0,2010.6,0.99478]
[1741546376111,4.20242,2011.0,2010.6,0.99479]
[1741546376309,0.99472,2010.8,2010.5,0.00745638]
[1741546376508,3.2078,2010.7,2010.5,0.00745638]
[1741546376703,0.9948,2010.6,2010.5,0.00745638]
[1741546376915,3.2078,2010.7,2009.8,3.2078]
[1741546377116,3.2078,2010.7,2010.0,2.48776]
[1741546377715,4.20257,2010.7,2009.9,9.0988]
[1741546377908,3.2078,2010.7,2009.9,9.0988]
[1741546378116,3.2078,2010.7,2010.1,0.00745638]
[1741546378307,3.2078,2010.2,2009.2,3.2078]
[1741546378506,3.2078,2009.9,2009.5,3.2078]
[1741546378816,3.2078,2010.2,2009.3,2.48862]
[1741546379006,3.2078,2010.2,2009.3,2.48859]
[1741546379324,22.307,2011.0,2009.2,3.2078]
[1741546379325,3.2078,2009.9,2009.2,3.2078]
[1741546379515,0.00745638,2010.0,2009.5,0.00745638]
[1741546379715,0.00745638,2010.0,2009.6,0.99526]
[1741546380012,0.00745638,2010.0,2009.5,0.00745638]
[1741546380215,3.2078,2009.8,2009.5,0.00745638]
[1741546380412,3.2078,2009.8,2009.0,0.99557]
[1741546380711,3.2078,2009.5,2008.7,3.7062]
[1741546380910,0.00745638,2010.0,2009.5,0.99533]
[1741546381107,0.00745638,2010.0,2009.8,3.2078]
[1741546381310,3.2078,2010.9,2009.9,2.48788]
[1741546381511,2.48606,2011.4,2011.0,0.99458]
[1741546381512,3.2078,2011.4,2011.0,0.99458]
[1741546381715,3.2078,2012.0,2010.8,3.2078]
[1741546381908,3.2078,2012.0,2010.5,5.835]
[1741546381909,3.2078,2012.0,2011.4,3.2078]
[1741546382106,3.2078,2012.3,2011.7,3.2078]